fUSD/lending_fUSD_20240415
["ID","MTS","AMOUNT","RATE_DAILY","PERIOD"]
[322630988,1713139489395,437.17,0.00017822,2]
[322630989,1713139510332,440.0,0.00028,30]
[322631141,1713139832248,-155.0,0.00019595,2]
[322631142,1713139832263,-155.0,0.00019596,2]
[322631143,1713139832276,-155.0,0.00019596,2]
[322631144,1713139832290,-526.09688753,0.00019597,2]
[322631145,1713139832305,-1908.99,0.00019661,2]
[322631146,1713139832317,-150.0,0.000197,2]
[322631147,1713139832330,-161.37,0.00019775,2]
[322631148,1713139832344,-469.3,0.00019775,2]
[322631149,1713139832357,-1000.0,0.0001983,2]
[322631150,1713139832372,-160.72,0.00019837,2]
[322631151,1713139832386,-715.6434656,0.0002,2]
[322631152,1713139832400,-499.99,0.0002,2]
[322631153,1713139832413,-437.17,0.00020086,2]
[322631154,1713139832426,-150.0,0.00020493,2]
[322631155,1713139832440,-300.0,0.00020493,2]
[322631156,1713139832455,-168.65,0.00020525,2]
[322631157,1713139832468,-749.16304367,0.00020699,2]
[322631158,1713139832482,-1251.94138232,0.00020699,2]
[322631159,1713139832497,-364.49,0.00020721,2]
[322631160,1713139832511,-749.16304362,0.00020721,2]
[322631161,1713139832524,-1251.94138229,0.00020721,2]
[322631162,1713139832538,-749.16304362,0.00020744,2]
[322631163,1713139832551,-1251.94138229,0.00020744,2]
[322631164,1713139832564,-749.16304362,0.00020766,2]
[322631165,1713139832578,-1251.94138229,0.00020766,2]
[322631166,1713139832591,-749.16304362,0.00020788,2]
[322631167,1713139832603,-1251.94138229,0.00020788,2]
[322631168,1713139832615,-147198.2511,0.00020799,2]
[322631169,1713139832627,-171.1101894,0.00020799,2]
[322631170,1713139832640,-318.55278003,0.00020799,2]
[322631171,1713139832652,-299.407,0.000208,2]
[322631172,1713139832664,-749.16304362,0.00020811,2]
[322631173,1713139832676,-1251.94138229,0.00020811,2]
[322631174,1713139832689,-200.0,0.00020832,2]
[322631175,1713139832702,-1000.0,0.00020832,2]
[322631176,1713139832715,-200.0,0.00020832,2]
[322631177,1713139832727,-500.0,0.00020832,2]
[322631178,1713139832743,-200.0,0.00020832,2]
[322631179,1713139832757,-749.16304362,0.00020833,2]
[322631180,1713139832770,-1251.94138229,0.00020833,2]
[322631181,1713139832782,-318.55278001,0.0002085,2]
[322631182,1713139832800,-749.16304362,0.00020855,2]
[322631183,1713139832813,-1251.94138229,0.00020855,2]
[322631184,1713139832825,-160.72,0.0002087,2]
[322631185,1713139832839,-749.16304362,0.00020878,2]
[322631186,1713139832855,-1251.94138229,0.00020878,2]
[322631187,1713139832869,-7500.0,0.0002088,2]
[322631188,1713139832882,-184.41600572,0.0002088,2]
[322631189,1713139832898,-184.41600572,0.00020886,2]
[322631190,1713139832910,-167.04,0.00020889,2]
[322631191,1713139832923,-340.25317147,0.0002089,2]
[322631192,1713139832937,-184.41600572,0.00020892,2]
[322631193,1713139832949,-327.01032315,0.00020897,2]
[322631194,1713139832962,-179.77,0.00020897,2]
[322631195,1713139832974,-4180.3337707,0.00020898,2]
[322631196,1713139832990,-153.70002979,0.00020898,2]
[322631197,1713139833002,-184.41600572,0.00020898,2]
[322631198,1713139833014,-551.30758715,0.00020898,2]
[322631199,1713139833026,-3294.17487144,0.00020898,3]
[322631200,1713139833038,-1537.65157252,0.00020898,2]
[322631201,1713139833050,-206.24698456,0.00020898,2]
[322631202,1713139833062,-4180.33377064,0.00020898,2]
[322631203,1713139833073,-4180.33377064,0.00020898,2]
[322631204,1713139833085,-4180.33377064,0.00020899,2]
[322631205,1713139833098,-4180.33377064,0.00020899,2]
[322631206,1713139833110,-1827.06832268,0.00020899,2]
[322631207,1713139833300,-469.17,0.00020899,2]
[322631208,1713139833336,-1413.164432,0.00020899,2]
[322631209,1713139837787,-155.50975615,0.00020897,2]
[322631210,1713139837797,-170.29375398,0.00020897,2]
[322631211,1713139837807,-4300.11814878,0.00020897,2]
[322631212,1713139837816,-207.17268862,0.00020898,2]
[322631213,1713139837827,-431.29767479,0.00020898,2]
[322631214,1713139837837,-165.04621256,0.00020898,2]
[322631215,1713139837847,-310.39764275,0.00020898,2]
[322631216,1713139837856,-365.21598516,0.00020898,2]
[322631217,1713139837866,-470.93101596,0.00020899,2]
[322631218,1713139837876,-358749.57134212,0.00020899,2]
[322631219,1713139837886,-551.30758715,0.00020899,2]
[322631220,1713139837896,-1537.65157252,0.00020899,2]
[322631221,1713139837906,-206.24698454,0.00020899,2]
[322631222,1713139837916,-151.381556,0.00020899,2]
[322631224,1713139837925,-4180.33377064,0.00020899,2]
[322631226,1713139837935,-4180.33377064,0.00020899,2]
[322631228,1713139837944,-4180.33377064,0.00020899,2]
[322631230,1713139837955,-4180.33377064,0.000209,2]
[322631232,1713139837964,-4180.33377064,0.000209,2]
[322631234,1713139837974,-108136.44882625,0.000209,3]
[322631237,1713139837986,-9609.360376,0.000209,2]
[322631238,1713139837997,-4180.33377064,0.000209,2]
[322631239,1713139838007,-153.70002979,0.000209,2]
[322631240,1713139838017,-749.16304362,0.000209,2]
[322631241,1713139838027,-551.30758715,0.000209,2]
[322631242,1713139838038,-440.05302058,0.000209,2]
[322631243,1713139838048,-440.05302039,0.000209,2]
[322631244,1713139838058,-318.55278001,0.000209,2]
[322631245,1713139838068,-440.05302039,0.000209,2]
[322631246,1713139838077,-440.05302039,0.000209,2]
[322631247,1713139838088,-440.05302039,0.000209,2]
[322631249,1713139838098,-440.05302039,0.000209,2]
[322631250,1713139838108,-440.05302039,0.000209,2]
[322631252,1713139838118,-1537.65157252,0.000209,2]
[322631254,1713139838127,-1251.94138229,0.000209,2]
[322631256,1713139838137,-440.05302039,0.000209,2]
[322631258,1713139838147,-440.05302039,0.000209,2]
[322631260,1713139838157,-206.24698454,0.000209,2]
[322631262,1713139838166,-10000.0,0.00020952,2]
[322631264,1713139838175,-4133.58190443,0.0002097,2]
[322631266,1713139838184,-340.25317147,0.0002097,2]
[322631268,1713139838194,-340.25317147,0.0002097,2]
[322631270,1713139838203,-167.04,0.0002097,2]
[322631272,1713139838212,-486.67993032,0.00020977,2]
[322631274,1713139838221,-2699.64214933,0.00020977,2]
[322631276,1713139838230,-1253.79868682,0.00020977,2]
[322631279,1713139838241,-1407.98562052,0.00020977,2]
[322631281,1713139838251,-3213.90672007,0.00020977,2]
[322631283,1713139838260,-1191.55992416,0.00020977,2]
[322631285,1713139838269,-192.22398399,0.00020978,2]
[322631287,1713139838278,-1045.93755107,0.00020979,2]
[322631289,1713139838288,-500.0,0.00020979,2]
[322631291,1713139838300,-287.05412141,0.00020979,2]
[322631293,1713139838309,-339194.85872119,0.0002098,2]
[322631295,1713139838318,-3291129.22009812,0.0002098,2]
[322631297,1713139838330,-5722489.39832741,0.0002098,2]
[322631299,1713139838341,-161.16450246,0.00020998,2]
[322631301,1713139838350,-300.99041887,0.00020998,2]
[322631303,1713139838359,-155.0,0.00020998,2]
[322631305,1713139838368,-14061.65239236,0.00020999,2]
[322631307,1713139838378,-157.041508,0.00020999,2]
[322631309,1713139838388,-157.041508,0.00020999,2]
[322631311,1713139838397,-157.041508,0.00020999,2]
[322631313,1713139838406,-157.041508,0.00020999,2]
[322631315,1713139838415,-157.041508,0.00020999,2]
[322631317,1713139838424,-157.041508,0.00020999,2]
[322631319,1713139838435,-157.041508,0.00020999,2]
[322631322,1713139838444,-157.041508,0.00020999,2]
[322631324,1713139838453,-157.041508,0.00020999,2]
[322631326,1713139838462,-157.041508,0.00020999,2]
[322631328,1713139838471,-157.041509,0.00020999,2]
[322631330,1713139838480,-157.041509,0.00020999,2]
[322631332,1713139838491,-157.041509,0.00020999,2]
[322631334,1713139838500,-157.041509,0.00020999,2]
[322631336,1713139838510,-157.041509,0.00020999,2]
[322631338,1713139838519,-157.041509,0.00020999,2]
[322631340,1713139838529,-157.041509,0.00020999,2]
[322631342,1713139838538,-157.041509,0.00020999,2]
[322631344,1713139838547,-157.041509,0.00020999,2]
[322631346,1713139838557,-157.041509,0.00020999,2]
[322631348,1713139838566,-157.041509,0.00020999,2]
[322631350,1713139838576,-182.16637574,0.00020999,2]
[322631352,1713139838584,-150.0,0.00020999,2]
[322631353,1713139838594,-150.0,0.00020999,2]
[322631354,1713139838603,-150.0,0.00020999,2]
[322631355,1713139838612,-150.0,0.00020999,2]
[322631356,1713139838622,-150.0,0.00020999,2]
[322631357,1713139838631,-189.52971142,0.00020999,2]
[322631358,1713139838641,-5199628.63100144,0.00021,2]
[322631359,1713139838650,-1430.30975011,0.00021,2]
[322631360,1713139838660,-715.48314253,0.00021,2]
[322631361,1713139838669,-543.84,0.00021,2]
[322631362,1713139838678,-502.24,0.00021,2]
[322631363,1713139838688,-300.0,0.00021,2]
[322631364,1713139838697,-3500.0,0.00021,2]
[322631365,1713139838706,-5478396.52641006,0.00021,2]
[322631741,1713139842349,-234.53879299,0.00020897,2]
[322631743,1713139842359,-181.18831397,0.00020897,2]
[322631745,1713139842368,-329.27289304,0.00020897,2]
[322631757,1713139842459,-263.67003687,0.00020897,2]
[322631760,1713139842468,-393.69899384,0.00020897,2]
[322631763,1713139842477,-677.23434259,0.00020897,2]
[322631766,1713139842486,-507.30753523,0.00020898,2]
[322631769,1713139842499,-265.2116766,0.00020898,2]
[322631772,1713139842508,-440.05302039,0.000209,2]
[322631778,1713139842517,-1048.04439448,0.00020952,2]
[322631829,1713139845656,-309.00550022,0.00020897,2]
[322631830,1713139845666,-177.07603948,0.00020897,2]
[322631831,1713139845675,-554.44687248,0.00020897,2]
[322631832,1713139845684,-520.30419503,0.00020897,2]
[322631833,1713139845694,-227.05153212,0.00020897,2]
[322631834,1713139845703,-440.05302039,0.000209,2]
[322631835,1713139845712,-8951.95560552,0.00020952,2]
[322631836,1713139845721,-815.26805316,0.00020952,2]
[322631837,1713139845731,-163.94973817,0.00020999,2]
[322631838,1713139845743,-145354.70796589,0.00021,2]
[322631839,1713139845804,-922.62559389,0.00021,2]
[322631843,1713140025302,26180.63324723,0.0003,120]
[322631845,1713140464707,393.45,0.00018267,2]
[322631847,1713140703538,1200.0,0.000232,18]
[322632097,1713140928535,373.77,0.00017967,2]
[322632119,1713141032949,-155.0,0.00018634,2]
[322632120,1713141032959,-1048.72083734,0.00018635,2]
[322632121,1713141032972,-15213.00655968,0.00018635,2]
[322632122,1713141032984,-3153.34108339,0.00018635,2]
[322632123,1713141032994,-1547.40358542,0.00019633,2]
[322632124,1713141033004,-312.19,0.00019877,2]
[322632125,1713141033013,-500.0,0.00019969,2]
[322632126,1713141033024,-1000.0,0.00020145,2]
[322632127,1713141033033,-373.77,0.00020231,2]
[322632128,1713141033043,-240.0,0.0002024,2]
[322632129,1713141033052,-1243.2544,0.00020597,2]
[322632130,1713141033062,-2986.62177669,0.00020597,2]
[322632131,1713141033244,-3994.47293492,0.00020597,2]
[322632132,1713141033257,-4998.35528839,0.00020597,2]
[322632133,1713141033266,-2979.72110261,0.00020597,2]
[322632134,1713141033277,-3194.60889739,0.00020597,2]
[322632135,1713141033287,-1629.67,0.00020597,2]
[322632136,1713141033297,-300.0,0.00020652,2]
[322632137,1713141033306,-457.76626035,0.00020697,2]
[322632138,1713141033316,-708.55484226,0.00020698,2]
[322632139,1713141033328,-1501.8336298,0.00020698,2]
[322632140,1713141033340,-1403.8,0.00020698,2]
[322632141,1713141033358,-1623.1694,0.00020698,2]
[322632142,1713141033370,-10348.6976708,0.00020698,2]
[322632143,1713141033380,-79.02770258,0.00020699,2]
[322632144,1713141033452,-352.91615579,0.00020699,2]
[322632145,1713141033463,-469.17,0.00020699,2]
[322632158,1713141037690,-10348.69764163,0.00020699,2]
[322632159,1713141037700,-150.0,0.00020752,2]
[322632160,1713141037710,-150.0,0.00020752,2]
[322632161,1713141037721,-2013.0,0.00020822,2]
[322632162,1713141037731,-200.0,0.00020832,2]
[322632163,1713141037741,-1000.0,0.00020832,2]
[322632164,1713141037753,-302.379778,0.00020832,2]
[322632165,1713141037763,-500.0,0.00020832,2]
[322632166,1713141037773,-200.0,0.00020832,2]
[322632167,1713141037783,-314.7777928,0.00020899,2]
[322632168,1713141037793,-70950.05253137,0.000209,2]
[322632169,1713141037802,-3979.3711,0.000209,2]
[322632170,1713141037812,-5985.4051,0.000209,2]
[322632171,1713141037822,-152.43488089,0.000209,2]
[322632172,1713141037831,-198.02385928,0.000209,2]
[322632173,1713141037840,-198.02385917,0.000209,2]
[322632174,1713141037850,-198.02385917,0.000209,2]
[322632180,1713141038170,-7500.0,0.000209,2]
[322632183,1713141038191,-198.02385917,0.000209,2]
[322632185,1713141038201,-198.02385917,0.000209,2]
[322632187,1713141038210,-198.02385917,0.000209,2]
[322632189,1713141038219,-198.02385917,0.000209,2]
[322632191,1713141038228,-198.02385917,0.000209,2]
[322632193,1713141038236,-198.02385917,0.000209,2]
[322632195,1713141038246,-318.2803752,0.000209,2]
[322632197,1713141038254,-198.02385917,0.000209,2]
[322632199,1713141038264,-198.02385917,0.000209,2]
[322632201,1713141038274,-198.02385917,0.000209,2]
[322632202,1713141038284,-198.02385917,0.000209,2]
[322632204,1713141038293,-198.02385917,0.000209,2]
[322632206,1713141038302,-198.02385917,0.000209,2]
[322632208,1713141038311,-198.02385917,0.000209,2]
[322632210,1713141038320,-198.02385917,0.000209,2]
[322632212,1713141038329,-198.02385917,0.000209,2]
[322632214,1713141038338,-198.02385917,0.000209,2]
[322632216,1713141038347,-11100.57828818,0.000209,2]
[322632218,1713141038357,-198.02385917,0.000209,2]
[322632221,1713141038366,-407.41490317,0.0002095,2]
[322632223,1713141038376,-363.05234289,0.00020951,2]
[322632225,1713141038385,-2270.81725953,0.00020951,2]
[322632227,1713141038394,-230.85150983,0.00020951,2]
[322632229,1713141038403,-800.0,0.00020959,2]
[322632231,1713141038412,-2219.56049107,0.0002099,2]
[322632232,1713141038422,-13719.9402121,0.0002099,2]
[322632234,1713141038431,-2902.1862243,0.0002099,2]
[322632236,1713141038441,-1325.3490388,0.0002099,2]
[322632238,1713141038450,-10543.9005181,0.0002099,2]
[322632240,1713141038459,-590.55491593,0.0002099,2]
[322632242,1713141038468,-158786.7234553,0.0002099,2]
[322632244,1713141038476,-2258.4469559,0.0002099,2]
[322632246,1713141038486,-495.37296188,0.00020998,2]
[322632248,1713141038495,-156.92121906,0.00020998,2]
[322632251,1713141038504,-161.16450246,0.00020998,2]
[322632252,1713141038514,-300.99041887,0.00020998,2]
[322632253,1713141038523,-155.0,0.00020998,2]
[322632254,1713141038533,-157.041509,0.00020999,2]
[322632255,1713141038542,-157.041509,0.00020999,2]
[322632256,1713141038551,-157.041509,0.00020999,2]
[322632257,1713141038560,-157.041509,0.00020999,2]
[322632258,1713141038569,-157.041509,0.00020999,2]
[322632259,1713141038578,-157.041509,0.00020999,2]
[322632260,1713141038587,-165.77140192,0.00020999,2]
[322632261,1713141038596,-157.041509,0.00020999,2]
[322632262,1713141038605,-157.041509,0.00020999,2]
[322632263,1713141038614,-157.041509,0.00020999,2]
[322632264,1713141038623,-157.041509,0.00020999,2]
[322632265,1713141038632,-157.041509,0.00020999,2]
[322632267,1713141038641,-157.041509,0.00020999,2]
[322632269,1713141038650,-157.041509,0.00020999,2]
[322632271,1713141038660,-157.041509,0.00020999,2]
[322632273,1713141038670,-157.041509,0.00020999,2]
[322632275,1713141038680,-157.041509,0.00020999,2]
[322632277,1713141038691,-157.041509,0.00020999,2]
[322632279,1713141038700,-157.041509,0.00020999,2]
[322632281,1713141038711,-157.041509,0.00020999,2]
[322632283,1713141038720,-157.041509,0.00020999,2]
[322632285,1713141038729,-157.041509,0.00020999,2]
[322632287,1713141038738,-150.0,0.00020999,2]
[322632289,1713141038749,-150.0,0.00020999,2]
[322632291,1713141038758,-150.0,0.00020999,2]
[322632293,1713141038768,-150.0,0.00020999,2]
[322632295,1713141038777,-150.0,0.00020999,2]
[322632297,1713141038786,-189.52971142,0.00020999,2]
[322632299,1713141038795,-337.30890918,0.00020999,2]
[322632301,1713141038804,-179.3188434,0.00021,2]
[322632303,1713141038813,-10382381.90322831,0.00021,2]
[322632445,1713141040088,-65998.89563514,0.00021,2]
[322632509,1713141040676,-655.06,0.00021,2]
[322632717,1713141042879,-2426.07766776,0.00021,2]
[322632718,1713141043010,-906.66,0.00021,2]
[322632724,1713141043926,-150.01,0.00020999,2]
[322632725,1713141043937,-150.99999987,0.00021,2]
[322632726,1713141043982,-425.31721758,0.00021,2]
[322632727,1713141044047,-471.80148621,0.00021,2]
[322632728,1713141044110,-876.39527843,0.00021,2]
[322632764,1713141046085,-1004.8729137,0.00020816,2]
[322632765,1713141046095,-2661.51709542,0.00021,2]
[322632766,1713141046106,-254.7136,0.00021,2]
[322632767,1713141046117,-157819.05802817,0.00021,2]
[322632768,1713141046129,-329294.14493857,0.00021,2]
[322632769,1713141046199,-1510.0,0.00021,2]
[322632770,1713141066910,2000.0,0.00018,2]
[322632771,1713141102420,30000.0,0.00018,2]
[322632773,1713141914000,336.39,0.0001817,2]
[322632887,1713142233072,-207.45,0.00019926,2]
[322632888,1713142233081,-250.0,0.00019928,2]
[322632889,1713142233091,-500.0,0.00019935,2]
[322632890,1713142233102,-415.82,0.00019935,2]
[322632891,1713142233114,-584.18,0.00019935,2]
[322632892,1713142233124,-12621.52,0.00019935,2]
[322632893,1713142233134,-596.7,0.00019977,2]
[322632894,1713142233143,-1200.0,0.0002,3]
[322632895,1713142233152,-181.0,0.0002005,3]
[322632896,1713142233162,-160.25,0.00020095,2]
[322632897,1713142233171,-336.39,0.00020434,2]
[322632898,1713142233180,-150.0,0.00020575,2]
[322632899,1713142233190,-177.158585,0.00020822,2]
[322632900,1713142233199,-200.0,0.00020832,2]
[322632901,1713142233209,-1000.0,0.00020832,2]
[322632902,1713142233218,-500.0,0.00020832,2]
[322632903,1713142233227,-1779.18955103,0.00020896,2]
[322632904,1713142233236,-1779.18955097,0.00020896,2]
[322632905,1713142233246,-93.51732035,0.00020897,2]
[322632906,1713142233276,-426.64000004,0.00020897,2]
[322632907,1713142233288,-444.06,0.00020897,2]
[322632908,1713142233347,-814.97223058,0.00020897,2]
[322632909,1713142233356,-872.32451376,0.00020897,2]
[322632910,1713142233368,-906.86503721,0.00020897,2]
[322632911,1713142233377,-578.51753949,0.00020898,2]
[322632922,1713142238010,-1200.0,0.000202,2]
[322632923,1713142238063,-1200.67201148,0.00020898,2]
[322632924,1713142238073,-1779.18955097,0.00020898,2]
[322632925,1713142238082,-1779.18955097,0.00020899,2]
[322632926,1713142238091,-1779.18955097,0.00020899,2]
[322632927,1713142238101,-1779.18955097,0.000209,2]
[322632928,1713142238110,-163.27090101,0.000209,2]
[322632929,1713142238120,-1779.18955097,0.000209,2]
[322632930,1713142238129,-7500.0,0.000209,2]
[322632931,1713142238139,-5379.92458939,0.0002097,2]
[322632932,1713142238148,-470.66,0.0002098,3]
[322632933,1713142238157,-2219.56049207,0.0002099,2]
[322632934,1713142238167,-157.041509,0.00020996,2]
[322632935,1713142238176,-157.041509,0.00020996,2]
[322632936,1713142238185,-157.041509,0.00020996,2]
[322632937,1713142238194,-157.041509,0.00020996,2]
[322632938,1713142238203,-157.041509,0.00020996,2]
[322632939,1713142238212,-157.041509,0.00020996,2]
[322632940,1713142238221,-157.041509,0.00020997,2]
[322632941,1713142238231,-157.041509,0.00020997,2]
[322632942,1713142238240,-157.041509,0.00020997,2]
[322632943,1713142238250,-157.041509,0.00020997,2]
[322632944,1713142238259,-157.041509,0.00020997,2]
[322632945,1713142238268,-251.43765178,0.00020998,2]
[322632946,1713142238277,-156.92121906,0.00020998,2]
[322632947,1713142238287,-300.99041887,0.00020998,2]
[322632948,1713142238296,-155.0,0.00020998,2]
[322632949,1713142238306,-161.16450246,0.00020998,2]
[322632950,1713142238316,-495.37296188,0.00020998,2]
[322632951,1713142238325,-157.041509,0.00020998,2]
[322632952,1713142238334,-157.041509,0.00020998,2]
[322632953,1713142238343,-157.041509,0.00020998,2]
[322632954,1713142238352,-157.041509,0.00020998,2]
[322632955,1713142238362,-157.041509,0.00020998,2]
[322632956,1713142238371,-157.041509,0.00020998,2]
[322632957,1713142238380,-150.01,0.00020999,2]
[322632959,1713142238390,-157.041509,0.00020999,2]
[322632961,1713142238399,-157.041509,0.00020999,2]
[322632963,1713142238410,-157.041509,0.00020999,2]
[322632965,1713142238419,-157.041509,0.00020999,2]
[322632967,1713142238428,-157.041509,0.00020999,2]
[322632969,1713142238437,-157.041509,0.00020999,2]
[322632971,1713142238451,-157.041509,0.00020999,2]
[322632973,1713142238460,-157.041509,0.00020999,2]
[322632975,1713142238470,-157.041509,0.00020999,2]
[322632977,1713142238479,-157.041509,0.00020999,2]
[322632979,1713142238488,-157.041509,0.00020999,2]
[322632981,1713142238498,-157.041509,0.00020999,2]
[322632983,1713142238507,-157.041509,0.00020999,2]
[322632985,1713142238517,-157.041509,0.00020999,2]
[322632988,1713142238526,-150.0,0.00020999,2]
[322632990,1713142238536,-337.30890918,0.00020999,2]
[322632992,1713142238545,-179.3188434,0.00021,2]
[322632993,1713142238554,-10546681.96766257,0.00021,2]
[322633239,1713142240696,-471.123024,0.00021,2]
[322633298,1713142241236,-658.99536,0.00021,2]
[322633300,1713142241246,-3440.59867363,0.00021,2]
[322633664,1713142244541,-150.01,0.00020999,2]
[322633666,1713142244551,-19947.5493429,0.00021,2]
[322633671,1713142244586,-592200.00000067,0.00021,2]
[322633685,1713142244701,-15928.37949408,0.00021,2]
[322633839,1713142246795,-273.31193874,0.000202,2]
[322633870,1713142281223,2000.0,0.000232,18]
[322633875,1713142422304,410.85,0.00017961,2]
[322633878,1713142460868,5868.0,0.00028,30]
[322633880,1713142736640,274.0,0.00028,30]
[322633882,1713142877864,1100.0,0.00028,30]
[322633883,1713142944600,156.46835162,0.00017576,2]
[322633884,1713142944627,233.83164838,0.00017576,2]
[322633916,1713143432349,-1347.51766648,0.00019462,2]
[322633917,1713143432359,-800.0,0.00019463,2]
[322633918,1713143432369,-211.51,0.0001947,2]
[322633919,1713143432378,-150.0,0.00019495,2]
[322633920,1713143432388,-150.0,0.00019495,2]
[322633921,1713143432397,-23322.26226182,0.00019496,2]
[322633922,1713143432407,-23890.0,0.00019497,2]
[322633923,1713143432417,-200.0,0.00019524,2]
[322633924,1713143432427,-161.37,0.0001954,2]
[322633925,1713143432439,-150.0,0.00019553,2]
[322633926,1713143432448,-155.43,0.00019644,2]
[322633927,1713143432458,-155.43,0.00019669,2]
[322633928,1713143432469,-2342.61,0.00019671,2]
[322633929,1713143432480,-155.43,0.00019693,2]
[322633930,1713143432489,-155.43,0.00019718,2]
[322633931,1713143432498,-155.43,0.00019742,2]
[322633932,1713143432507,-1242.78,0.00019742,2]
[322633933,1713143432518,-315.58,0.00019748,2]
[322633934,1713143432528,-315.58,0.00019802,2]
[322633935,1713143432538,-390.3,0.0001984,2]
[322633937,1713143432547,-315.58,0.00019856,2]
[322633938,1713143432556,-200.0,0.00019857,2]
[322633939,1713143432565,-150.99,0.00019858,2]
[322633940,1713143432575,-315.58,0.00019911,2]
[322633941,1713143432584,-315.58,0.00019965,2]
[322633942,1713143432593,-155.0,0.0002,2]
[322633943,1713143432603,-315.58,0.00020019,2]
[322633944,1713143432613,-500.0,0.00020038,2]
[322633945,1713143432622,-200.0,0.00020038,2]
[322633946,1713143432632,-315.58,0.00020073,2]
[322633947,1713143432641,-315.58,0.00020127,2]
[322633948,1713143432650,-315.58,0.00020181,2]
[322633949,1713143432660,-315.58,0.00020236,2]
[322633950,1713143432669,-315.58,0.0002029,2]
[322633951,1713143432679,-315.58,0.00020344,2]
[322633952,1713143432689,-4763.86367803,0.00020365,2]
[322633953,1713143432698,-315.58,0.00020398,2]
[322633954,1713143432707,-315.58,0.00020452,2]
[322633955,1713143432717,-12585.76224199,0.000205,2]
[322633956,1713143432727,-315.58,0.00020506,2]
[322633957,1713143432738,-315.58,0.00020561,2]
[322633958,1713143432747,-315.58,0.00020615,2]
[322633959,1713143432757,-37623.0,0.00020658,2]
[322633960,1713143432766,-1315.0,0.00020658,2]
[322633961,1713143432775,-5719.0,0.00020658,2]
[322633962,1713143432784,-4803.0,0.00020658,2]
[322633963,1713143432794,-1054.0,0.00020658,2]
[322633964,1713143432803,-315.58,0.00020669,2]
[322633965,1713143432812,-230.4262186,0.000207,2]
[322633966,1713143432821,-230.4262186,0.000207,2]
[322633967,1713143432830,-315.58,0.00020723,2]
[322633968,1713143432839,-315.58,0.00020777,2]
[322633969,1713143432849,-230.4262186,0.0002079,2]
[322633970,1713143432858,-974.92,0.000208,2]
[322633971,1713143432867,-220.1035121,0.000208,2]
[322633972,1713143432877,-909.92883488,0.000208,2]
[322633973,1713143432887,-358.49866398,0.000208,2]
[322633974,1713143432896,-230.4262186,0.00020801,2]
[322633975,1713143432905,-909.92883486,0.00020811,2]
[322633976,1713143432915,-358.49866396,0.00020811,2]
[322633977,1713143432924,-220.10351204,0.00020814,2]
[322633978,1713143432933,-159.19,0.0002082,2]
[322633979,1713143432942,-159.442726,0.00020822,2]
[322633980,1713143432952,-909.92883486,0.00020822,2]
[322633981,1713143432961,-358.49866396,0.00020822,2]
[322633982,1713143432970,-220.10351204,0.00020829,2]
[322633983,1713143432982,-909.92883486,0.00020833,2]
[322633984,1713143432992,-358.49866396,0.00020833,2]
[322633985,1713143433001,-230.4262186,0.00020834,2]
[322633986,1713143433010,-220.10351204,0.00020843,2]
[322633987,1713143433020,-909.92883486,0.00020844,2]
[322633988,1713143433029,-358.49866396,0.00020844,2]
[322633989,1713143433038,-909.92883486,0.00020856,2]
[322633990,1713143433047,-358.49866396,0.00020856,2]
[322633991,1713143433057,-230.4262186,0.00020857,2]
[322633992,1713143433066,-220.10351204,0.00020857,2]
[322633993,1713143433075,-909.92883486,0.00020867,2]
[322633994,1713143433085,-230.4262186,0.0002087,2]
[322633995,1713143433095,-220.10351204,0.00020871,2]
[322633996,1713143433105,-909.92883486,0.00020878,2]
[322633997,1713143433116,-2058.6887,0.0002088,2]
[322633998,1713143433125,-173.54,0.0002088,2]
[322633999,1713143433135,-230.4262186,0.0002088,2]
[322634000,1713143433144,-230.4262186,0.0002088,2]